Cogmind - Beta 17.1 @@@ ROGUE MODE // 2026.08.19 @ 12:32:50 Player: Infomantis Result: Destroyed self with Rocket Launcher Performance ------------- Evolutions (0) 0 Regions Visited (2) 400 Robots Destroyed (9) 45 Value Destroyed (240) 240 Prototype IDs (1) 20 Alien Tech Used (0) 0 Bonus (5150) 5150 TOTAL SCORE: 5855 Bonus ------- Prayed to X0-1V1 5000 Major X0-1V1 Interference 150 Cogmind --------- Core Integrity 0/100 Matter 195/300 Energy 250/250 System Corruption 16% Temperature Cool (0) Movement Treading (160) Location -10/Mines Parts ------- > --- POWER (1) -------- Ion Engine > --- PROPULSION (2) --- Improved Treads (fused) Compact Wheel > --- UTILITY (2) ------ Medium Storage Unit Self-contained Transmogrifier > --- WEAPON (2) ------- Beam Rifle (fused) Rocket Launcher > --- INVENTORY (10) --- Armored Wheel Armored Wheel Armored Wheel Small Storage Unit Seismic Detector X0-1V1's Piety Tracker Light Assault Rifle Mining Laser Peak State ------------ > --- POWER ------------ Ion Engine > --- PROPULSION ------- Improved Treads Compact Wheel > --- UTILITY ---------- Medium Storage Unit Self-contained Transmogrifier > --- WEAPON ----------- Beam Rifle Rocket Launcher > --- INVENTORY -------- Armored Wheel Armored Wheel Armored Wheel Small Storage Unit Seismic Detector X0-1V1's Piety Tracker Light Assault Rifle Mining Laser [Rating: 20] Favorites ----------- Power Ion Engine Engine Ion Engine Propulsion Light Treads Treads Light Treads Wheel Compact Wheel Utility Medium Storage Unit Device Self-contained Transmogrifier Storage Medium Storage Unit Weapon Light Assault Rifle Energy Gun EM Pulse Gun Ballistic Gun Light Assault Rifle Launcher Rocket Launcher Special Weapon Mining Laser Build | -11 -10 -10 ------- Run | Yrd Mat Min Slots Evolved . | . . . Power . | . . . Propulsion . | . . . Utility . | . . . Weapon . | . . . Parts Attached 12 | 7 2 3 Power 1 | 1 . . Engine 1 | 1 . . Core . | . . . Reactor . | . . . Propulsion 3 | 2 . 1 Treads 2 | 2 . . Leg . | . . . Wheel 1 | . . 1 Hover . | . . . Flight . | . . . Utility 3 | 2 1 . Device 1 | 1 . . Storage 2 | 1 1 . Processor . | . . . Hackware . | . . . Protection . | . . . Artifact . | . . . Weapon 5 | 2 1 2 Energy Gun 2 | 1 . 1 Energy Cannon . | . . . Ballistic Gun 1 | 1 . . Ballistic Cannon . | . . . Launcher 1 | . . 1 Special Weapon 1 | . 1 . Impact Weapon . | . . . Slashing Weapon . | . . . Piercing Weapon . | . . . Special Melee Weapon . | . . . Unidentified Prototypes . | . . . Parts Lost 2 | . 2 . Power . | . . . Propulsion 1 | . 1 . Utility . | . . . Weapon 1 | . 1 . Highest Loss Streak 2 | . 2 . To Critical Strikes . | . . . Average Backups 4 | 1 4 6 Power . | . . . Propulsion 1 | . 1 1 Utility 1 | . 1 3 Weapon 1 | 1 2 1 Tool/Special . | . . . Unused Backups 4 | . . 4 Power . | . . . Propulsion 3 | . . 3 Utility 1 | . . 1 Weapon . | . . . Tool/Special . | . . . Average Slot Usage (%) 95 | . 96 91 Engine 14 | . 14 14 Treads 23 | . 26 14 Wheel 1 | . . 6 Device 14 | . 14 14 Storage 14 | . 14 14 Energy Gun 12 | . 12 14 Ballistic Gun 13 | . 13 13 Peak Build Rating 20 | 7 17 20 Average Rating 11 | 5 11 17 On Entrance 7 | . 7 15 Avg Prop Armor Cover (%) 14 | . . 14 Naked Turns . | . . . Heaviest Build 19 | 14 19 19 Greatest Support 43 | 40 43 23 Greatest Overweight (x) 1 | . . 1 Average Overweight (x) . | . . . Largest Inventory Capacity 10 | 8 10 10 Average Capacity 9 | 7 9 10 Most Carried 8 | 4 6 8 Average Carried 4 | 1 4 6 Final Capacity 10 | 8 10 10 Final Carried 8 | 3 6 8 Transmogrified Parts 3 | . 2 1 Integrity Recovered 9 | . 9 . Class Distribution -------------------- 100% | Mutant Dominant Class ---------------- Mutant | -10/Materials Mutant | -10/Mines Resources | -11 -10 -10 ----------- Run | Yrd Mat Min Matter Collected 309 | 281 28 . Remotely . | . . . Salvage Created 378 | 159 203 16 Parts 28 | 11 17 . Haulers Intercepted . | . . . Recyclers Shooed . | . . . Parts Field Recycled . | . . . Retrieved Matter . | . . . Parts Self-Destructed . | . . . Prevented . | . . . Parts Restored . | . . . Kills | -11 -10 -10 ------- Run | Yrd Mat Min Combat Hostiles Destroyed 10 | . 5 5 Guns 4 | . 4 . AOE 6 | . 1 5 Classes Destroyed 4 | 2 1 1 Tunneler 3 | 3 . . Recycler 1 | 1 . . Grunt 5 | . 5 . Assembled 5 | . . 5 Best Kill Streak 5 | 2 3 5 Combat Bots Only 5 | . 3 5 Max Kills in Single Turn 2 | 1 1 2 Gunslinging . | . . . Exploded 2 | . 1 2 Melee . | . . . Uniques/NPCs Destroyed . | . . . Combat | -11 -10 -10 -------- Run | Yrd Mat Min Hostile Shots Fired 12 | . 7 5 Missed 4 | . 3 1 Hits 8 | . 4 4 Projectile 8 | . 4 4 Damage Taken 415 | . 302 113 Core 131 | . 51 80 Absorbed by Shields . | . . . Core Remaining (%) 100 | 100 . . Volleys Fired 27 | 11 11 5 Largest 2 | 2 2 2 Hottest 100 | 60 100 76 Shots Fired 47 | 22 19 6 Gun 40 | 22 16 2 Cannon . | . . . Launcher 4 | . . 4 Special 3 | . 3 . Kinetic 20 | 11 8 1 Thermal 4 | . 3 1 Explosive 4 | . . 4 Electromagnetic 19 | 11 8 . Robot Hit Streak 8 | 8 5 7 Robot Miss Streak 2 | 2 1 1 Penetration Max . | . . . Secondary Targets 1 | . 1 . Max Gunslinging Chain 1 | . 1 . Shots Hit Robots 29 | 14 12 3 Core Hits 22 | 5 8 9 Critical Kills . | . . . Critical Parts Destroyed . | . . . Critical Strikes . | . . . Melee Attacks . | . . . Impact . | . . . Slashing . | . . . Piercing . | . . . Sneak Attacks . | . . . Combat Hostiles . | . . . Follow-up Attacks . | . . . Damage Inflicted 711 | 167 331 213 Guns 297 | 135 142 20 Cannons . | . . . Explosions 406 | 32 181 193 Melee . | . . . Ramming 8 | . 8 . Kinetic 97 | 41 50 6 Thermal 109 | 32 63 14 Explosive 311 | . 118 193 Electromagnetic 186 | 94 92 . Impact . | . . . Slashing . | . . . Piercing . | . . . Highest Corruption 16 | . . 16 Average Corruption 16 | . . 16 Corruption Purged . | . . . Corruption Blocked . | . . . Effects 1 | . . 1 Matter Fused 1 | . . 1 Overload Shots . | . . . Overflow Damage 56 | . 56 . Projectiles . | . . . Explosions 56 | . 56 . Melee . | . . . Knockbacks 1 | . 1 . Impact 1 | . 1 . Kinetic . | . . . Secondary . | . . . Self-Inflicted Damage 303 | . 225 78 Shots 6 | . 3 3 Rammed 2 | . 2 . Targets Rammed 2 | . 2 . Kicked . | . . . Crushed . | . . . Highest Temperature 70 | 40 70 36 Average Temperature 21 | 15 25 23 Received Heat Transfer 70 | . 30 40 Siege Activations . | . . . Martial Activations . | . . . Shielding Activations . | . . . Robots Disrupted . | . . . Combat Hostiles . | . . . Robots Corrupted . | . . . Combat Hostiles . | . . . Parts Fried . | . . . Impact Corruptions . | . . . Robots Melted . | . . . Combat Hostiles . | . . . Parts Melted . | . . . Heat Transferred 87 | . 50 37 Parts Sabotaged . | . . . Parts Stolen . | . . . Parts Stripped . | . . . Power Chain Reactions 2 | 1 1 . Alert | -11 -10 -10 ------- Run | Yrd Mat Min Maximum Alert Level . | . . . Low Security (%) 100 | 100 100 100 Level 1 . | . . . Level 2 . | . . . Level 3 . | . . . Level 4 . | . . . Level 5 . | . . . High Security . | . . . Max Security . | . . . Peak Influence 154 | 10 154 50 Initial 50 | . . 50 Average 24 | 1 32 22 Influence Increases 279 | 20 238 21 Destroy 0b10 Robot/C 100 | . 100 . Destroy 0b10 Robot/NC 20 | 20 . . Destroy Leader 20 | . 20 . Successful Hack 5 | . 5 . Select Force Hacks 30 | . 30 . Disable Machine 45 | . 45 . Destroy Structure 59 | . 38 21 Influence Decreases 258 | 20 108 130 Entered New Map 80 | . . 80 Time Decay 158 | 20 88 50 Lost Part 20 | . 20 . Squads Dispatched 2 | . 2 . Investigation 2 | . 2 . Extermination . | . . . Reinforcement . | . . . Assault . | . . . Garrison . | . . . Intercept . | . . . Searches Triggered . | . . . Construction Impeded . | . . . Haulers Reinforced . | . . . Active Scanning Responses . | . . . Cargo Convoy Interrupts . | . . . Stealth | -11 -10 -10 --------- Run | Yrd Mat Min Distress Signals . | . . . Communications Jammed . | . . . Distress Signals . | . . . Times Spotted 18 | . 10 8 Peak Tracking Total 4 | . 4 3 Tactical Retreats . | . . . Traps | -11 -10 -10 ------- Run | Yrd Mat Min Traps Triggered 1 | . 1 . Indirectly . | . . . Trap Hack Attempts . | . . . Triggered . | . . . Disarmed . | . . . Reprogrammed . | . . . Reused . | . . . Traps Extracted . | . . . Installed . | . . . Triggered . | . . . Machines | -11 -10 -10 ---------- Run | Yrd Mat Min Machines Disabled 3 | . 3 . Max in Single Turn 3 | . 3 . Machines Repaired . | . . . Machines Dismantled . | . . . Machines Sabotaged . | . . . Overloaded Fab Kills . | . . . Hacking | -11 -10 -10 --------- Run | Yrd Mat Min Machines Accessed 4 | . 4 . Terminals 3 | . 3 . Fabricators . | . . . Repair Stations . | . . . Recycling Units 1 | . 1 . Scanalyzers . | . . . Garrison Access . | . . . Total Hacks 6 | . 6 . Successful 3 | . 3 . Failed 3 | . 3 . Catastrophic . | . . . Database Lockouts . | . . . Manual 6 | . 6 . Terminals 5 | . 5 . Fabricators . | . . . Repair Stations . | . . . Recycling Units 1 | . 1 . Scanalyzers . | . . . Garrison Access . | . . . Terminal Hacks 1 | . 1 . Part Schematic 1 | . 1 . Fabricator Hacks . | . . . Repair Station Hacks . | . . . Recycling Unit Hacks . | . . . Scanalyzer . | . . . Garrison Access Hacks . | . . . Unauthorized Hacks 2 | . 2 . Terminals 1 | . 1 . Botnet 1 | . 1 . Fabricators . | . . . Repair Stations . | . . . Recycling Units 1 | . 1 . Tunnel 1 | . 1 . Scanalyzers . | . . . Garrison Access . | . . . Data Cores Recovered . | . . . Used . | . . . Hacking Detections 2 | . 2 . Full Trace Events . | . . . Feedback Events . | . . . Feedback Blocked . | . . . Robot Schematics Acquired . | . . . Robots Built . | . . . Authchips . | . . . Time . | . . . Total Robot Build Rating . | . . . Part Schematics Acquired 1 | . 1 . Parts Built . | . . . Authchips . | . . . Time . | . . . Total Part Build Rating . | . . . Part Studies Acquired . | . . . Parts Repaired . | . . . Time . | . . . Parts Recycled . | . . . Recycled Matter . | . . . Retrieved Matter . | . . . Retrieved Components . | . . . Parts Scanalyzed . | . . . Part Schematics Acquired . | . . . Parts Damaged . | . . . Bothacking | -11 -10 -10 ------------ Run | Yrd Mat Min Used RIF Installer . | . . . Robots Hacked . | . . . Non-combat . | . . . Combat . | . . . Robot Hacks Applied . | . . . Relay Couplers Released . | . . . Fabnet Peak Effective % . | . . . Robots Rewired . | . . . Allies Hacked . | . . . Hacks Repelled . | . . . Allies | -11 -10 -10 -------- Run | Yrd Mat Min Total Allies . | . . . Largest Group . | . . . Highest-Rated Group . | . . . Highest-Rated Ally . | . . . Total Orders . | . . . Ally Attacks . | . . . Total Damage . | . . . Kills . | . . . Allies Corrupted . | . . . Allies Melted . | . . . X0-1V1 Amusement Gains 106 | . 13 93 Average Entertainment 30 | . 20 47 Good Acts 2 | . . 2 Bad Acts 2 | . . 2 Intel | -11 -10 -10 ------- Run | Yrd Mat Min Active Infowar (turns) 312 | 55 257 . Seismic 312 | 55 257 . Robot Analysis Total . | . . . Derelict Logs Recovered . | . . . Drone Launches . | . . . Drone Recoveries . | . . . Exploration | -11 -10 -10 ------------- Run | Yrd Mat Min Turns Passed 798 | 145 515 138 Spaces Moved 367 | 67 236 64 Core 5 | 5 . . Treads 338 | 62 236 40 Legs . | . . . Wheels 24 | . . 24 Hover . | . . . Flight . | . . . Fastest Speed 50 | 50 160 115 Average Speed 155 | 151 160 143 Slowest Speed 160 | 160 160 160 Overloaded Moves . | . . . Propulsion Burnouts . | . . . Robots Hopped . | . . . Potential Cave-ins . | . . . Cave-ins Triggered . | . . . Exploration Rate (%) 21 | 4 50 11 Regions Visited 2 Branch Regions 1 Pre-discovered Areas 1 | . 1 . Known Exits Taken . | . . . Unknown Exits Taken 2 | 1 1 . Scrap Searched . | . . . Spaces Dug 2 | . 2 . Terrain Destroyed 83 | 2 49 32 Melee . | . . . Projectile 3 | . 3 . AOE 80 | 2 46 32 Terrain Rammed . | . . . Walls Destroyed . | . . . Machines Disabled . | . . . Actions | -11 -10 -10 --------- Run | Yrd Mat Min Total 540 | 88 347 105 Wait 124 | . 94 30 Move 365 | 66 235 64 Hop . | . . . Pick Up 7 | 4 2 1 Fast Attach 6 | 6 . . Attach 3 | 1 . 2 Detach . | . . . Swap 6 | . 3 3 Drop . | . . . Fire 27 | 11 11 5 Melee . | . . . Ram . | . . . Kick . | . . . Crush 2 | . 2 . Escape Stasis . | . . . Rewire . | . . . Trap . | . . . Miscellaneous . | . . . Route ------- -11/Scrapyard -10/Materials (discovered 2 exits: [*Min] / [*Sub]) -10/Mines History --------- Turn | Location | Event 3 | -11/Scrapyard | Discovered new exit (range 15) 146 | -11/Scrapyard | Entered Materials 307 | -10/Materials | Build established: Mutant 382 | -10/Materials | Discovered new exit (range 6) 403 | -10/Materials | Made a sacrifice at D.C.S.S. Altar Unit 403 | -10/Materials | Forcibly received Sfc. Transmogifier from X0-1V1 598 | -10/Materials | Core integrity fell below 50% 617 | -10/Materials | Discovered new exit (range 16) 646 | -10/Materials | Derelicts attacked the area 661 | -10/Materials | Entered Mines 662 | -10/Mines | Assembled infested the area 667 | -10/Mines | Assisted by a Guerilla fighting off Assembled 668 | -10/Mines | Received a Rocket Launcher from a helpful Derelict 756 | -10/Mines | X0-1V1 sent hostile S-10 Pest (x3) 789 | -10/Mines | Core integrity fell below 20% 792 | -10/Mines | System corruption reached 10% 799 | -10/Mines | Destroyed self with Rocket Launcher Last Messages --------------- were you, so I'm going to lend you mine." 00668_ DJ-KDC(g) slips back into the shadows. 00671_ Acquired Rocket Launcher. 00686_ DW-M8X(h): "I'll hold them off! Go on ahead or try to find another way!" 00686_ HV Slug penetrates Wall. 00735_ Sfc. Transmogrifier converts Med. Laser into Beam Rifle. 00746_ X0-1V1 smiles upon you. (Received Arm. Wheel x3) 00756_ X0-1V1: "Some new friends to play with." S-10 Pest form resolidifies at new position. 00756_ S-10 Pest suffers critical hit (Destroy). 00784_ X0-1V1: "A slightly more accurate toy is still a toy." (+10% ranged accuracy) 00788_ as-11919 destroyed. 00790_ as-81637 destroyed. 00790_ as-72977 destroyed. 00792_ X0-1V1 brushes you with a corrupting influence (+16 system corruption). 00799_ System corrupted: Matter fused (-10). 00799_ X0-1V1 giggles madly! Map ----- +----------------------------------------------------+ | ?????????????????????????????????????????????????? | | ?????????????????????????????????????????????????? | | ?????????????????????????????????????????????????? | | ?????????????????????????????????????????????????? | | ?????????????????????????????????????????????????? | | ?????????????????????????????????????????????????? | | ?????????????????????????????????????????????????? | | ?????????????????????????????????????????????????? | | ????????????????????????? ?????????????????????? | | ????????????????????????? ???????????????????? | | ????????????????????????# ????????????????? | | ???????????????????????? % # ? ??????????????? | | ???????????????????????? ???????????????? | | ???????????????????????? a ???????????????? | | ???????????????????????? =% ????????????????? | | ???????????????????????# %= ????????????????? | | ??????????????????????? #*= a?????????????????? | | ??????????????????????? =% #?????????????????? | | ???????????????????????# #?????????????????? | | ???????????????????????# #??????????????????? | | ???????????????????????# #??????????????????? | | ???????????????????????# [ #???????????????????? | | ???????????????????????# ##??????????????????? | | ??????????????????????## % #??????????????????? | | ?????????????????????## #??????????????????? | | ?????????????????????# @ #???????????????????? | | ?????????????????????# ####?????????????????? | | ?????????????????????# # ##????????????????? | | ????????????????????## #????????????????? | | ???????????????????## #????????????????? | | ??????????????????## # #????????????????? | | ?????????????????## #### ##????????????????? | | ?????????????????# #??####?????????????????? | | ????????????????## #???????????????????????? | | ?????????????#### #???????????????????????? | | ????????????## ##???????????????????????? | | ????????????# ###????????????????????????? | | ????????????# ##??????????????????????????? | | ????????????## ##???????????????????????????? | | ?????????????## ###????????????????????????????? | | ??????????????#####??????????????????????????????? | | ?????????????????????????????????????????????????? | | ?????????????????????????????????????????????????? | | ?????????????????????????????????????????????????? | | | | | | | | | | | | | +----------------------------------------------------+ Best States ------------- Heat Dissipation 25 Energy Generation 10 Energy Capacity 250 Matter Stores 300 Matter Capacity 300 Sight Range 16 Terrain Scan Density 10 Evasion (%) 40 Recoil Reduction 2 Item Schematics ----------------- Hcp. Storage Unit | -10/Materials | Hacked Robot Schematics ------------------ None Fabricated ------------ Nothing Repaired ---------- Nothing Studied --------- None Alien Tech Used ----------------- None Achievements -------------- None Challenges ------------ None Game ------ Seed DamperVariableJack Manual? 0 Play Time 00:07:20 Cumulative 687.5 hours Start 2026.08.19 @ 12:27:17 End 2026.08.19 @ 12:32:50 Sessions 1 Manual Loads 0 Difficulty Rogue Special Mode None Game No. 382 Rogue 357 Adventurer 7 Explorer 18 Win Type - Total 67 Types 43/3/9/2/2/1/2/3/0/2 Lore% 95 Gallery% 88 Achievement% 75 Wizard Run 0 Options --------- Layout 0 ASCII 0 Keyboard 0 Movement Numpad Keybinds 0 Fullscreen 1 Font 18/SmallcapsGlow Map View 76x50 Zoom Use 0% Tactical HUD 1 Map Filters NONE Filters NONE Steam 1 RUN: 32fbd9e3-d41c-48b6-920a-1779cf369450